bitfinex-derivatives/quotes_BTCF0:USTF0_20241104
["timestamp","ask_amount","ask_price","bid_price","bid_amount"]
[1730689630120,0.28138055,69309.0,69308.0,0.12488]
[1730689630407,0.25349232,69309.0,69308.0,0.12488]
[1730689630610,0.28138085,69309.0,69308.0,0.12488]
[1730689631016,0.28238085,69309.0,69308.0,0.12488]
[1730689631413,0.13965232,69309.0,69308.0,0.12488]
[1730689631711,0.001,69309.0,69308.0,0.12588]
[1730689632307,0.002,69309.0,69308.0,0.12588]
[1730689633606,0.14065232,69309.0,69308.0,0.12588]
[1730689636903,0.10453481,69309.0,69308.0,0.12588]
[1730689637415,0.49945232,69309.0,69308.0,0.001]
[1730689637813,0.57163232,69309.0,69308.0,0.001]
[1730689638013,0.57163232,69309.0,69308.0,0.05811276]
[1730689638423,0.57163232,69309.0,69308.0,0.001]
[1730689638615,0.57163232,69309.0,69308.0,0.05810656]
[1730689638919,0.57163232,69309.0,69308.0,0.05910656]
[1730689638920,0.57263232,69309.0,69308.0,0.05910656]
[1730689639314,0.072188,69301.0,69294.0,0.13823662]
[1730689639520,0.71029264,69301.0,69294.0,0.0526]
[1730689639720,0.57164032,69301.0,69294.0,0.0526]
[1730689640923,0.57264032,69301.0,69294.0,0.124795]
[1730689641519,0.71229264,69301.0,69294.0,0.0526]
[1730689641725,0.71229264,69301.0,69289.0,0.1135]
[1730689641726,0.64010464,69301.0,69289.0,0.1135]
[1730689641912,0.13865232,69290.0,69289.0,0.1135]
[1730689642114,0.25001232,69290.0,69289.0,0.1135]
[1730689642315,0.25001232,69290.0,69289.0,0.185701]
[1730689642615,0.25001232,69290.0,69289.0,0.1135]
[1730689643520,0.25101232,69290.0,69289.0,0.1135]
[1730689644812,0.25201232,69290.0,69289.0,0.1135]
[1730689645916,0.25201232,69290.0,69289.0,0.185701]
[1730689646118,0.002,69290.0,69289.0,0.185701]
[1730689650128,0.002,69290.0,69289.0,0.66157894]
[1730689650435,0.1114,69297.0,69296.0,0.072193]
[1730689651432,0.50021232,69300.0,69299.0,0.07219]
[1730689651625,0.61085232,69300.0,69299.0,0.07219]
[1730689652728,0.4722,69300.0,69299.0,0.07219]
[1730689652929,0.4732,69300.0,69299.0,0.07219]
[1730689653129,0.545389,69300.0,69299.0,0.07219]
[1730689653336,0.545389,69300.0,69299.0,0.17470921]
[1730689653629,0.546389,69300.0,69299.0,0.17670921]
[1730689654135,0.546389,69300.0,69299.0,0.07419]
[1730689654330,0.546389,69300.0,69299.0,0.17668963]
[1730689654532,0.3628,69300.0,69299.0,0.17668963]
[1730689655420,0.3628,69300.0,69299.0,0.26232625]
[1730689655621,0.3628,69300.0,69299.0,0.17668963]
[1730689655819,0.002,69300.0,69299.0,0.17668963]
[1730689656033,0.3608,69315.0,69313.0,0.072175]
[1730689656235,0.13865232,69321.0,69319.0,0.072169]
[1730689656530,0.1114,69320.0,69319.0,0.072169]
[1730689656931,0.40704699,69323.0,69322.0,0.072166]
[1730689657131,0.47436459,69323.0,69322.0,0.072166]
[1730689657334,0.54652959,69323.0,69322.0,0.072166]
[1730689657527,0.54652959,69323.0,69319.0,0.0713447]
[1730689657528,0.072168,69320.0,69319.0,0.0713447]
[1730689657924,0.072168,69320.0,69318.0,0.07217]
[1730689657925,0.072168,69320.0,69318.0,0.1435147]
[1730689658241,0.072168,69320.0,69319.0,0.072169]
[1730689658536,0.1114,69322.0,69321.0,0.072167]
[1730689660133,0.1174,69322.0,69321.0,0.073167]
[1730689660636,0.25605232,69322.0,69321.0,0.073167]
[1730689660930,0.14465232,69322.0,69321.0,0.073167]
[1730689661133,0.25601232,69322.0,69321.0,0.074167]
[1730689661524,0.25001232,69322.0,69321.0,0.073167]
[1730689661835,0.25201232,69322.0,69321.0,0.073167]
[1730689662232,0.25001232,69322.0,69321.0,0.073167]
[1730689662420,0.25101232,69322.0,69321.0,0.073167]
[1730689665436,0.25101232,69322.0,69310.0,0.04341042]
[1730689665437,0.75046464,69322.0,69310.0,0.072179]
[1730689665638,0.13865232,69313.0,69310.0,0.072179]
[1730689666528,0.13865232,69313.0,69311.0,0.072178]
[1730689666939,0.13965232,69313.0,69311.0,0.072178]
[1730689667542,0.072177,69312.0,69310.0,0.014]
[1730689667735,0.183498,69311.0,69310.0,0.027]
[1730689667931,0.789438,69311.0,69310.0,0.027]
[1730689668537,0.072192,69297.0,69294.0,0.0713447]
[1730689668739,0.072192,69297.0,69291.0,0.072198]
[1730689668740,0.11136,69296.0,69295.0,0.072194]
[1730689668928,0.3608,69301.0,69290.0,0.0713447]
[1730689669246,0.11136,69300.0,69299.0,0.07219]
[1730689670039,0.3608,69301.0,69300.0,0.072189]
[1730689670239,0.11136,69302.0,69301.0,0.072188]
[1730689670538,0.072179,69310.0,69304.0,0.072185]
[1730689670746,0.18354,69309.0,69304.0,0.072185]
[1730689671244,0.072182,69307.0,69304.0,0.072185]
[1730689671937,0.072182,69307.0,69305.0,0.072183]
[1730689672646,0.21083432,69307.0,69305.0,0.072183]
[1730689672845,0.13965232,69307.0,69300.0,0.243088]
[1730689673043,0.13865232,69302.0,69300.0,0.243088]
[1730689673446,0.11136,69301.0,69300.0,0.243089]
[1730689675738,0.11136,69301.0,69300.0,0.244089]
[1730689675939,0.11136,69301.0,69300.0,0.129989]
[1730689676139,0.001,69301.0,69300.0,0.075189]
[1730689676367,0.002,69301.0,69300.0,0.075189]
[1730689676540,0.002,69301.0,69300.0,0.003]
[1730689676742,0.074188,69301.0,69300.0,0.003]
[1730689680447,0.074188,69301.0,69300.0,0.075189]
[1730689680448,0.002,69301.0,69300.0,0.075189]
[1730689682148,0.11136,69304.0,69301.0,0.072187]
[1730689682149,0.11136,69302.0,69301.0,0.072187]
[1730689682752,0.32219932,69302.0,69301.0,0.07138166]
[1730689683050,0.072188,69301.0,69300.0,0.003]
[1730689683348,0.072188,69301.0,69299.0,0.07138166]
[1730689683553,0.185547,69302.0,69301.0,0.073188]
[1730689684556,0.11336,69302.0,69301.0,0.073188]
[1730689684857,0.11336,69302.0,69301.0,0.14456966]
[1730689685055,0.11336,69302.0,69301.0,0.24682732]
[1730689685443,0.11236,69302.0,69301.0,0.24682732]
[1730689685848,0.184547,69302.0,69301.0,0.24682732]
[1730689686149,0.32319932,69302.0,69301.0,0.073188]
[1730689686342,0.32419932,69302.0,69301.0,0.004]
[1730689687552,0.11336,69302.0,69301.0,0.076188]
[1730689688051,0.002,69302.0,69301.0,0.14758668]
[1730689688255,0.11336,69302.0,69301.0,0.17844568]
[1730689688443,0.002,69302.0,69301.0,0.17844568]
[1730689688638,0.072178,69311.0,69310.0,0.072177]
[1730689688837,0.183538,69311.0,69310.0,0.072177]
[1730689689157,0.183538,69311.0,69310.0,0.24557378]
[1730689689347,0.11136,69312.0,69311.0,0.072178]
[1730689689651,0.3608,69322.0,69318.0,0.07217]
[1730689689652,0.072169,69320.0,69318.0,0.07217]
[1730689689859,0.183529,69320.0,69319.0,0.072169]
[1730689690646,0.183529,69320.0,69318.0,0.07139787]
[1730689690647,0.072169,69319.0,69318.0,0.07139787]
[1730689690855,0.072171,69318.0,69317.0,0.07139787]
[1730689691161,0.25001232,69318.0,69315.0,0.07139787]
[1730689691451,0.13865232,69316.0,69314.0,0.07139787]
[1730689691652,0.072174,69315.0,69314.0,0.07139787]
[1730689691957,0.072174,69315.0,69313.0,0.07139787]
[1730689692344,0.072174,69315.0,69314.0,0.17331637]
[1730689692551,0.072174,69315.0,69314.0,0.17335927]
[1730689692749,0.183494,69315.0,69313.0,0.07144077]
[1730689692948,0.183494,69315.0,69314.0,0.001]
[1730689693348,0.22863048,69315.0,69314.0,0.07244077]
[1730689693549,0.22863048,69315.0,69314.0,0.001]
[1730689694759,0.71813048,69315.0,69309.0,0.07144077]
[1730689694961,0.072181,69308.0,69307.0,0.07144077]
[1730689695153,0.072182,69307.0,69306.0,0.07144077]
[1730689695460,0.072182,69307.0,69306.0,0.10242956]
[1730689696255,0.3608,69310.0,69307.0,0.072182]
[1730689696256,0.432979,69310.0,69307.0,0.072182]
[1730689696445,0.432979,69310.0,69308.0,0.10242956]
[1730689696646,0.432979,69310.0,69309.0,0.10242956]
[1730689697156,0.432979,69310.0,69307.0,0.072182]
[1730689697157,0.072179,69310.0,69307.0,0.072182]
[1730689697657,0.1156548,69310.0,69307.0,0.072182]
[1730689697857,0.072179,69310.0,69307.0,0.072182]
[1730689698073,0.001,69307.0,69306.0,0.021]
[1730689698256,0.001,69307.0,69306.0,0.093183]
[1730689698461,0.001,69307.0,69306.0,0.082183]
[1730689698661,0.183494,69315.0,69302.0,0.50029232]
[1730689698869,0.183494,69315.0,69311.0,0.072178]
[1730689699455,0.11132,69315.0,69307.0,0.005]
[1730689699668,0.11132,69315.0,69314.0,0.072175]
[1730689699863,0.001,69307.0,69306.0,0.15665232]
[1730689700066,0.072172,69317.0,69314.0,0.072174]
[1730689700268,0.183493,69316.0,69315.0,0.072173]
[1730689701964,0.13865232,69320.0,69302.0,0.47654849]
[1730689701965,0.21082132,69320.0,69318.0,0.07217]
[1730689702157,0.40701401,69323.0,69322.0,0.072166]
[1730689702158,0.36372459,69323.0,69322.0,0.072166]
[1730689702354,0.47428459,69323.0,69322.0,0.072166]
[1730689702559,0.54644959,69323.0,69322.0,0.072166]
[1730689703167,0.43512959,69323.0,69322.0,0.072166]
[1730689703361,0.43512959,69323.0,69322.0,0.073166]
[1730689703362,0.48228459,69323.0,69322.0,0.073166]
[1730689703755,0.36296459,69323.0,69322.0,0.072166]
[1730689703959,0.00816459,69323.0,69322.0,0.072166]
[1730689704361,0.006,69323.0,69322.0,0.432966]
[1730689704857,0.011,69323.0,69322.0,0.432966]
[1730689705257,0.072154,69334.0,69322.0,0.61985189]
[1730689705564,0.49945232,69344.0,69330.0,0.13865232]
[1730689705769,0.183421,69347.0,69345.0,0.072142]
[1730689706064,0.072141,69346.0,69345.0,0.072142]
[1730689706369,0.072138,69350.0,69345.0,0.04271046]
[1730689706674,0.11344414,69349.0,69348.0,0.11484537]
[1730689706872,0.00216414,69349.0,69348.0,0.11484537]
[1730689707054,0.00216414,69349.0,69348.0,0.072139]
[1730689707055,0.11344414,69349.0,69348.0,0.072139]
[1730689707957,0.00216414,69349.0,69348.0,0.072139]
[1730689708364,0.00316414,69349.0,69348.0,0.072139]
[1730689708564,0.00316414,69349.0,69348.0,0.11481215]
[1730689708765,0.00316414,69349.0,69348.0,0.072139]
[1730689708954,0.00316414,69349.0,69348.0,0.12916079]
[1730689709153,0.00416414,69349.0,69348.0,0.12916079]
[1730689709365,0.072126,69361.0,69357.0,0.07213]
[1730689709366,0.11128,69358.0,69357.0,0.07213]
[1730689709567,0.072125,69363.0,69358.0,0.072128]
[1730689709867,0.11128,69361.0,69360.0,0.072127]
[1730689710667,0.24993232,69362.0,69350.0,0.04259912]
[1730689710970,0.13865232,69354.0,69350.0,0.072137]
[1730689711177,0.072134,69353.0,69350.0,0.072137]
[1730689711379,0.13865232,69354.0,69350.0,0.072137]
[1730689711564,0.072138,69349.0,69344.0,0.072143]
[1730689711778,0.21079032,69349.0,69346.0,0.072141]
[1730689712270,0.21079032,69349.0,69347.0,0.07214]
[1730689712473,0.072138,69349.0,69347.0,0.07214]
[1730689713662,0.072138,69349.0,69316.0,0.07132349]
[1730689713663,0.13865232,69348.0,69328.0,0.04259912]
[1730689713860,0.21081132,69329.0,69327.0,0.00216358]
[1730689714063,0.1834,69328.0,69327.0,0.00216358]
[1730689714261,0.11124,69328.0,69327.0,0.00216358]
[1730689714873,0.1834,69328.0,69327.0,0.00216358]
[1730689715071,0.1834,69328.0,69327.0,0.01616358]
[1730689716068,0.1834,69328.0,69327.0,0.03016358]
[1730689716268,0.5442,69328.0,69327.0,0.03016358]
[1730689716977,0.5452,69328.0,69327.0,0.03016358]
[1730689717670,0.5442,69328.0,69327.0,0.01616358]
[1730689717866,0.5502,69328.0,69327.0,0.01716358]
[1730689718071,0.5502,69328.0,69327.0,0.00316358]
[1730689718267,0.1944,69328.0,69327.0,0.002]
[1730689718477,0.1884,69328.0,69327.0,0.001]
[1730689718669,0.1944,69328.0,69327.0,0.002]
[1730689718894,0.1894,69328.0,69327.0,0.001]
[1730689719073,0.1894,69328.0,69327.0,0.002]
[1730689719074,0.1944,69328.0,69327.0,0.002]
[1730689719873,0.011,69328.0,69327.0,0.074161]
[1730689720067,0.11128,69337.0,69326.0,0.0603]
[1730689720068,0.072153,69335.0,69326.0,0.0603]
[1730689720268,0.072153,69335.0,69332.0,0.072156]
[1730689721080,0.072153,69335.0,69327.0,0.08716]
[1730689721081,0.001,69328.0,69327.0,0.08716]
[1730689721575,0.001,69328.0,69327.0,0.08616]
[1730689721780,0.11128,69334.0,69326.0,0.0603]
[1730689721781,0.072158,69331.0,69328.0,0.072159]
[1730689721975,0.072158,69331.0,69326.0,0.0613]
[1730689722183,0.072158,69331.0,69329.0,0.072159]
[1730689723481,0.072158,69331.0,69330.0,0.072158]
[1730689724873,0.072158,69330.0,69329.0,0.002]
[1730689725076,0.21081032,69330.0,69329.0,0.002]
[1730689726398,0.21581032,69330.0,69329.0,0.001]
[1730689727473,0.22181032,69330.0,69329.0,0.001]
[1730689728671,0.33305032,69330.0,69329.0,0.001]
[1730689730490,0.33305032,69330.0,69312.0,0.04259912]
[1730689730491,0.76577032,69330.0,69312.0,0.04259912]
[1730689730673,0.072175,69314.0,69312.0,0.04259912]
[1730689730875,0.072175,69314.0,69313.0,0.10179912]
[1730689731480,0.13865232,69315.0,69313.0,0.131376]
[1730689731676,0.13865232,69315.0,69313.0,0.10179912]
[1730689731981,0.13865232,69315.0,69314.0,0.072175]
[1730689732783,0.13865232,69315.0,69313.0,0.04359912]
[1730689732988,0.073175,69314.0,69313.0,0.05674183]
[1730689733188,0.073175,69314.0,69313.0,0.014]
[1730689733481,0.13965232,69315.0,69309.0,0.11492083]
[1730689733685,0.074174,69315.0,69314.0,0.012]
[1730689734081,0.072182,69307.0,69306.0,0.00216399]
[1730689734284,0.432982,69307.0,69306.0,0.00216399]
[1730689734876,0.57163432,69307.0,69306.0,0.00216399]
[1730689735675,0.57163432,69307.0,69294.0,0.072195]
[1730689735676,0.072192,69297.0,69294.0,0.072195]
[1730689735878,0.13865232,69295.0,69294.0,0.072195]
[1730689736386,0.13865232,69295.0,69293.0,0.0573]
[1730689736787,0.21084632,69295.0,69294.0,0.014]
[1730689737684,0.072196,69294.0,69293.0,0.0573]
[1730689737874,0.072196,69294.0,69293.0,0.0713]
[1730689738483,0.072196,69294.0,69293.0,0.0813]
[1730689739078,0.073196,69294.0,69293.0,0.0813]
[1730689739281,0.073196,69294.0,69293.0,0.0673]
[1730689740084,0.074196,69294.0,69293.0,0.0813]
[1730689740280,0.002,69294.0,69293.0,0.153497]
[1730689740480,0.11128,69296.0,69293.0,0.0813]
[1730689740683,0.11128,69296.0,69295.0,0.072194]
[1730689741786,0.11228,69296.0,69295.0,0.072194]
[1730689741985,0.072196,69294.0,69293.0,0.0813]
[1730689742191,0.072196,69294.0,69293.0,0.01]
[1730689742378,0.61249232,69296.0,69295.0,0.01]
[1730689742578,0.68392532,69296.0,69295.0,0.01]
[1730689743885,0.68392532,69296.0,69295.0,0.024]
[1730689744488,1.11684532,69296.0,69295.0,0.024]
[1730689744889,1.11584532,69296.0,69295.0,0.014]
[1730689745099,1.11684532,69296.0,69295.0,0.01]
[1730689745587,0.072194,69295.0,69280.0,0.04274183]
[1730689745793,0.21086032,69282.0,69281.0,0.04490683]
[1730689745983,0.21379542,69282.0,69278.0,0.04274183]
[1730689746183,0.072212,69278.0,69277.0,0.04274183]
[1730689746390,0.072212,69278.0,69273.0,0.1138]
[1730689746391,0.50021232,69279.0,69275.0,0.04274183]
[1730689746591,0.49945232,69279.0,69275.0,0.04274183]
[1730689746891,0.072214,69276.0,69275.0,0.04274183]
[1730689747387,0.072214,69276.0,69274.0,0.04274183]
[1730689747582,0.13865232,69275.0,69274.0,0.04274183]
[1730689747992,0.08805915,69275.0,69274.0,0.04274183]
[1730689748197,0.16027415,69275.0,69274.0,0.04274183]
[1730689748389,0.16027415,69275.0,69273.0,0.15654183]
[1730689748588,0.50045232,69279.0,69273.0,0.15654183]
[1730689748791,0.50045232,69279.0,69276.0,0.072213]
[1730689748998,0.50045232,69279.0,69273.0,0.15654183]
[1730689749291,0.001,69275.0,69274.0,0.007]
[1730689749496,0.002,69275.0,69274.0,0.079216]
[1730689750193,0.002,69275.0,69273.0,0.15654183]
[1730689750194,0.57446432,69279.0,69275.0,0.072215]
[1730689750493,0.072212,69278.0,69276.0,0.072214]
[1730689750800,0.54358132,69279.0,69277.0,0.072213]
[1730689750994,0.54282132,69279.0,69277.0,0.072213]
[1730689751297,0.11132,69278.0,69277.0,0.072213]
[1730689751486,0.11132,69278.0,69277.0,0.11495483]
[1730689751683,0.50025232,69279.0,69277.0,0.04274183]
[1730689751888,0.49945232,69279.0,69278.0,0.072212]
[1730689752091,0.11132,69281.0,69276.0,0.04274183]
[1730689752294,0.11132,69281.0,69274.0,0.008]
[1730689752295,0.072207,69283.0,69280.0,0.07221]
[1730689752491,0.11132,69282.0,69281.0,0.072209]
[1730689753287,0.11132,69282.0,69280.0,0.04274183]
[1730689753491,0.13865232,69284.0,69280.0,0.05074183]
[1730689753492,0.183449,69281.0,69280.0,0.05074183]
[1730689754391,0.183449,69281.0,69280.0,0.008]
[1730689754902,0.183449,69281.0,69278.0,0.05679883]
[1730689754903,0.072211,69279.0,69278.0,0.05679883]
[1730689755102,0.21086332,69279.0,69278.0,0.05679883]
[1730689756495,0.13965232,69279.0,69275.0,0.07132349]
[1730689756702,0.072213,69277.0,69275.0,0.07132349]
[1730689757101,0.14065232,69279.0,69275.0,0.07132349]
[1730689757299,0.14065232,69279.0,69274.0,0.07132349]
[1730689757300,0.64010464,69279.0,69274.0,0.07132349]
[1730689757494,0.072212,69278.0,69277.0,0.05710363]
[1730689757690,0.072216,69274.0,69273.0,0.18512349]
[1730689757895,0.21086832,69274.0,69273.0,0.1138]
[1730689758198,0.21086832,69274.0,69273.0,0.18512349]
[1730689758506,0.21086832,69274.0,69273.0,0.21609646]
[1730689759003,0.21186832,69274.0,69273.0,0.22409646]
[1730689759192,0.21186832,69274.0,69273.0,0.2955524]
[1730689759389,0.21186832,69274.0,69273.0,0.22409646]
[1730689759700,0.21286832,69274.0,69273.0,0.22409646]
[1730689760802,0.21286832,69274.0,69273.0,0.16879646]
[1730689761802,0.21186832,69274.0,69273.0,0.16079646]
[1730689762012,0.21186832,69274.0,69273.0,0.16879646]
[1730689762307,0.21286832,69274.0,69273.0,0.16879646]
[1730689762509,0.21286832,69274.0,69273.0,0.16906843]
[1730689763410,0.21286832,69274.0,69273.0,0.29135035]
[1730689764107,0.14065232,69274.0,69273.0,0.29135035]
[1730689764304,0.002,69274.0,69273.0,0.24128543]
[1730689764501,0.11328,69274.0,69273.0,0.36351205]
[1730689765007,0.002,69274.0,69273.0,0.24128543]
[1730689765208,0.11328,69274.0,69273.0,0.36315206]
[1730689766410,0.06991476,69274.0,69273.0,0.36315206]
[1730689766706,0.11128,69274.0,69273.0,0.36315206]
[1730689766901,0.03900782,69274.0,69273.0,0.6039054]
[1730689767106,0.03900782,69274.0,69273.0,0.50398401]
[1730689767497,0.03900782,69274.0,69273.0,0.36315206]
[1730689768007,0.11537217,69277.0,69276.0,0.072214]
[1730689768208,0.183493,69277.0,69276.0,0.17478243]
[1730689769307,0.185493,69277.0,69276.0,0.18378243]
[1730689772408,0.185493,69277.0,69276.0,0.269894]
[1730689772701,0.185493,69277.0,69276.0,0.16732557]
[1730689772908,0.185493,69277.0,69276.0,0.26873676]
[1730689773296,0.185493,69277.0,69276.0,0.18262519]
[1730689774213,0.074213,69277.0,69276.0,0.18262519]
[1730689774506,0.185493,69277.0,69276.0,0.18262519]
[1730689776310,0.185493,69277.0,69276.0,0.11041119]
[1730689776609,0.185493,69277.0,69276.0,0.19662416]
[1730689776910,0.23168,69277.0,69276.0,0.19664049]
[1730689777506,0.23168,69277.0,69276.0,0.11080843]
[1730689777715,0.303893,69277.0,69276.0,0.11080843]
[1730689778915,0.303893,69277.0,69276.0,0.1826609]
[1730689779299,0.303893,69277.0,69276.0,0.009]
[1730689779601,0.303893,69277.0,69276.0,0.11040673]
[1730689781416,0.303893,69277.0,69276.0,0.18223075]
[1730689781915,0.303893,69277.0,69276.0,0.18215144]
[1730689782412,0.303893,69277.0,69276.0,0.009]
[1730689784417,0.074213,69277.0,69276.0,0.009]
[1730689784616,0.185413,69277.0,69276.0,0.11027916]
[1730689787622,0.185413,69277.0,69276.0,0.009]
[1730689787623,0.21331624,69277.0,69276.0,0.009]
[1730689790622,0.10211624,69277.0,69276.0,0.009]
[1730689790821,0.21331624,69277.0,69276.0,0.009]
[1730689791124,0.185413,69277.0,69276.0,0.009]
[1730689791327,0.21331494,69277.0,69276.0,0.009]
[1730689791625,0.185413,69277.0,69276.0,0.009]
[1730689794524,0.185413,69277.0,69276.0,0.11000469]
[1730689796024,0.185413,69277.0,69276.0,0.11004114]
[1730689797719,0.074213,69277.0,69276.0,0.11004114]
[1730689797927,0.185413,69277.0,69276.0,0.009]
[1730689799728,0.185413,69277.0,69276.0,0.06649]
[1730689800827,0.185413,69277.0,69271.0,0.07183949]
[1730689800828,0.072218,69272.0,69271.0,0.07183949]
[1730689801024,0.433018,69272.0,69271.0,0.07183949]
[1730689801326,0.072219,69271.0,69265.0,0.1445293]
[1730689801523,0.072219,69271.0,69270.0,0.07185987]
[1730689801724,0.072221,69270.0,69269.0,0.07185987]
[1730689802225,0.072221,69270.0,69269.0,0.17310432]
[1730689802627,0.072221,69270.0,69265.0,0.0583]
[1730689802628,0.072224,69267.0,69266.0,0.07185987]
[1730689802828,0.21087632,69267.0,69266.0,0.17312997]
[1730689803817,0.21087632,69267.0,69266.0,0.1012701]
[1730689804121,0.21087632,69267.0,69266.0,0.10113047]
[1730689804928,0.21187632,69267.0,69266.0,0.10113047]
[1730689805230,0.25537541,69267.0,69266.0,0.10113047]
[1730689805633,0.25637541,69267.0,69266.0,0.10113047]
[1730689806326,0.25637541,69267.0,69266.0,0.17298518]
[1730689806531,0.072225,69266.0,69265.0,0.0583]
[1730689806731,0.544225,69266.0,69265.0,0.0583]
[1730689808141,0.545225,69266.0,69265.0,0.0583]
[1730689808735,0.546225,69266.0,69265.0,0.0583]
[1730689811536,0.545225,69266.0,69265.0,0.0583]
[1730689812234,0.001,69266.0,69265.0,0.130526]
[1730689812436,0.13865232,69267.0,69266.0,0.072225]
[1730689812636,0.1112,69268.0,69265.0,0.0583]
[1730689812944,0.24985232,69268.0,69267.0,0.072224]
[1730689813438,0.13865232,69268.0,69267.0,0.072224]
[1730689814240,0.21087532,69268.0,69267.0,0.072224]
[1730689815535,0.21387532,69268.0,69267.0,0.072224]
[1730689816432,0.11108,69273.0,69265.0,0.10066979]
[1730689816637,0.183298,69273.0,69272.0,0.072218]
[1730689816834,0.32195032,69273.0,69272.0,0.072218]
[1730689817031,0.24973232,69273.0,69272.0,0.072218]
[1730689817343,0.13865232,69273.0,69272.0,0.072218]
[1730689817840,0.183293,69277.0,69276.0,0.072214]
[1730689818047,0.21086532,69277.0,69276.0,0.072214]
[1730689818233,0.13865232,69277.0,69276.0,0.072214]
[1730689818748,0.072211,69280.0,69279.0,0.072211]
[1730689818749,0.11108,69280.0,69279.0,0.072211]
[1730689819246,0.18329,69280.0,69279.0,0.072211]
[1730689820744,0.18429,69280.0,69279.0,0.072211]
[1730689821242,0.07321,69280.0,69279.0,0.076211]
[1730689821446,0.07221,69280.0,69279.0,0.076211]
[1730689821749,0.07321,69280.0,69279.0,0.076211]
[1730689822049,0.001,69280.0,69279.0,0.076211]
[1730689824540,0.3608,69289.0,69279.0,0.17571672]
[1730689824743,0.54405232,69294.0,69291.0,0.072199]
[1730689824744,0.072198,69292.0,69291.0,0.072199]
[1730689825132,0.11108,69294.0,69286.0,0.16391692]
[1730689825331,0.183276,69294.0,69293.0,0.072197]
[1730689825544,0.11108,69294.0,69293.0,0.072197]
[1730689827548,0.12108,69294.0,69293.0,0.072197]
[1730689827741,0.01,69294.0,69293.0,0.072197]
[1730689828342,0.023,69294.0,69293.0,0.072197]
[1730689829248,0.095196,69294.0,69293.0,0.072197]
[1730689829549,0.23384832,69294.0,69293.0,0.11507982]
[1730689829740,0.23384832,69294.0,69293.0,0.072197]
[1730689830239,0.23384832,69294.0,69293.0,0.11507982]
[1730689830448,0.23384832,69294.0,69293.0,0.072197]
[1730689830841,0.16165232,69294.0,69293.0,0.072197]
[1730689831941,0.023,69294.0,69293.0,0.072197]
[1730689832544,0.023,69294.0,69293.0,0.11505275]
[1730689832850,0.023,69294.0,69293.0,0.072197]
[1730689837549,0.023,69294.0,69293.0,0.505157]
[1730689838652,0.023,69294.0,69293.0,0.072197]
[1730689839749,0.20369943,69294.0,69293.0,0.072197]
[1730689839954,0.22583411,69294.0,69274.0,0.433016]
[1730689840150,0.072207,69283.0,69282.0,0.433008]
[1730689840353,0.13639285,69283.0,69282.0,0.433008]
[1730689840550,0.18072033,69283.0,69282.0,0.433008]
[1730689840749,0.17979641,69283.0,69282.0,0.433008]
[1730689841259,0.10758941,69283.0,69282.0,0.433008]
[1730689841468,0.10958941,69283.0,69282.0,0.433008]
[1730689845259,0.06526152,69283.0,69282.0,0.433008]
[1730689845466,0.06525937,69283.0,69282.0,0.433008]
[1730689846967,0.13746637,69283.0,69282.0,0.433008]
[1730689847767,0.074207,69283.0,69282.0,0.53318449]
[1730689850167,0.074207,69283.0,69282.0,0.53327351]
[1730689852569,0.074207,69283.0,69282.0,0.61950281]
[1730689852865,0.074207,69283.0,69282.0,0.17247351]
[1730689853067,0.074207,69283.0,69282.0,0.18629522]
[1730689853370,0.12191812,69283.0,69282.0,0.10026551]
[1730689854269,0.52406894,69283.0,69278.0,0.07170275]
[1730689854569,0.1393,69285.0,69276.0,0.07170275]
[1730689854570,0.45186894,69279.0,69276.0,0.07170275]
[1730689854764,0.09106894,69277.0,69272.0,0.072218]
[1730689854970,0.09106894,69273.0,69272.0,0.072218]
[1730689855166,0.09106894,69273.0,69272.0,0.11524167]
[1730689855372,0.072217,69274.0,69272.0,0.11524167]
[1730689855373,0.072217,69274.0,69272.0,0.072218]
[1730689855677,0.072217,69273.0,69272.0,0.072218]
[1730689856164,0.073217,69273.0,69272.0,0.073218]
[1730689856359,0.073217,69273.0,69272.0,0.079218]
[1730689856360,0.074217,69273.0,69272.0,0.079218]
[1730689856759,0.074217,69273.0,69272.0,0.007]
[1730689857162,0.002,69273.0,69272.0,0.007]
[1730689857370,0.002,69273.0,69272.0,0.14577641]
[1730689857564,0.002,69273.0,69272.0,0.21799441]
[1730689857760,0.002,69273.0,69272.0,0.079218]
[1730689859370,0.002,69273.0,69272.0,0.57879441]
[1730689860774,0.002,69273.0,69272.0,1.01187441]
[1730689860966,0.00216568,69287.0,69286.0,0.072204]
[1730689862178,0.00716568,69287.0,69286.0,0.072204]
[1730689862576,0.01516568,69287.0,69286.0,0.073204]
[1730689862978,0.22614509,69287.0,69286.0,0.001]
[1730689863281,0.29763038,69287.0,69286.0,0.001]
[1730689864067,0.29563038,69287.0,69286.0,0.001]
[1730689864268,0.33099713,69287.0,69286.0,0.001]
[1730689864465,0.07221,69281.0,69279.0,0.072211]
[1730689864670,0.07221,69280.0,69279.0,0.072211]
[1730689865064,0.072207,69284.0,69278.0,0.3608]
[1730689865376,0.19534209,69287.0,69280.0,0.13877641]
[1730689865377,0.01316568,69287.0,69280.0,0.13877641]
[1730689865576,0.00716568,69287.0,69286.0,0.072204]
[1730689865877,0.03856615,69287.0,69286.0,0.073204]
[1730689866274,0.03056615,69287.0,69286.0,0.072204]
[1730689866668,0.10276915,69287.0,69286.0,0.072204]
[1730689867077,0.10272084,69287.0,69286.0,0.072204]
[1730689867682,0.072206,69284.0,69283.0,0.072206]
[1730689867888,0.10055816,69284.0,69283.0,0.072206]
[1730689869184,0.10355816,69284.0,69283.0,0.072206]
[1730689869778,0.075206,69284.0,69283.0,0.072206]
[1730689870484,0.076206,69284.0,69283.0,0.072206]
[1730689871282,0.004,69284.0,69279.0,0.14380433]
[1730689871586,0.076206,69284.0,69283.0,0.05733376]
[1730689873484,0.076206,69284.0,69283.0,0.04301006]
[1730689873783,0.072207,69283.0,69282.0,0.04301006]
[1730689874780,0.072207,69283.0,69281.0,0.05733376]
[1730689875088,0.072207,69283.0,69282.0,0.05733376]